bitfinex-derivatives/quotes_SOLF0:USTF0_20241017
["timestamp","ask_amount","ask_price","bid_price","bid_amount"]
[1729161298397,5.54,151.6,151.54,1.3997]
[1729161298594,5.54,151.61,151.6,3.2987]
[1729161298802,5.54,151.62,151.59,3.32663022]
[1729161299014,5.54,151.62,151.56,1.3555]
[1729161299294,5.54,151.62,151.6,3.2988]
[1729161299690,5.54,151.62,151.59,3.299]
[1729161299896,5.54,151.63,151.56,1.3555]
[1729161300097,5.54,151.63,151.56,4.60491253]
[1729161300296,5.54,151.66,151.62,3.2984]
[1729161300496,5.54,151.66,151.63,3.37348881]
[1729161300691,5.54,151.68,151.61,15.82]
[1729161300889,3.2976,151.67,151.63,3.2981]
[1729161301088,3.2976,151.67,151.62,3.36490907]
[1729161301089,5.54,151.68,151.61,15.82]
[1729161301289,21.36,151.68,151.6,1.4102]
[1729161301689,3.2975,151.67,151.63,3.2983]
[1729161302099,21.36,151.68,151.63,3.2983]
[1729161302705,3.2975,151.67,151.63,3.2983]
[1729161303092,3.2978,151.66,151.62,3.2984]
[1729161303395,3.2978,151.66,151.6,1.4102]
[1729161303596,3.2978,151.66,151.62,3.2983]
[1729161303796,3.2978,151.66,151.55,22.7121]
[1729161303797,3.2982,151.64,151.55,22.7121]
[1729161303996,5.54,151.63,151.56,2.6981]
[1729161304200,5.54,151.63,151.56,5.99218173]
[1729161304403,3.2979,151.65,151.56,5.99218173]
[1729161304604,5.54,151.64,151.62,3.2984]
[1729161304902,5.54,151.64,151.55,22.7121]
[1729161304903,15.82,151.63,151.48,3.24492618]
[1729161305105,15.82,151.58,151.53,3.3003]
[1729161305297,15.82,151.54,151.48,3.38043699]
[1729161305499,15.82,151.54,151.45,15.82]
[1729161305500,3.3005,151.53,151.45,15.82]
[1729161305694,21.36,151.54,151.45,19.10437183]
[1729161305895,15.82,151.51,151.45,3.28437183]
[1729161306105,5.54,151.5,151.46,3.3018]
[1729161306400,15.82,151.51,151.39,8.3503]
[1729161306401,15.82,151.47,151.39,3.31771404]
[1729161306603,15.82,151.49,151.4,1.3877]
[1729161306906,5.54,151.49,151.43,15.82]
[1729161307313,5.54,151.49,151.45,3.3021]
[1729161308207,3.3016,151.48,151.43,15.82]
[1729161308501,5.54,151.49,151.4,17.2077]
[1729161308502,21.36,151.49,151.4,17.2077]
[1729161309001,24.6615,151.49,151.4,17.2077]
[1729161309305,5.8,151.49,151.42,15.82]
[1729161309510,5.8,151.49,151.45,3.302]
[1729161309704,5.8,151.5,151.44,3.23083097]
[1729161309910,5.8,151.5,151.42,15.82]
[1729161310508,3.3014,151.49,151.44,3.3024]
[1729161310705,5.8,151.5,151.42,15.82]
[1729161311616,5.8,151.5,151.43,3.3026]
[1729161311915,5.8,151.5,151.44,3.30900435]
[1729161312104,9.1011,151.5,151.44,3.3023]
[1729161312410,9.1011,151.5,151.42,15.82]
[1729161312411,15.82,151.49,151.4,17.2077]
[1729161312617,15.82,151.49,151.43,3.3025]
[1729161312618,3.3016,151.48,151.43,3.3025]
[1729161312802,5.8,151.5,151.27,7.7226666]
[1729161313006,0.7938,151.48,151.39,15.82]
[1729161313208,24.9215,151.49,151.41,15.82]
[1729161313603,21.62,151.49,151.4,4.136]
[1729161313805,15.82,151.49,151.41,5.8]
[1729161314011,21.62,151.51,151.41,21.62]
[1729161314809,3.3012,151.5,151.45,3.302]
[1729161315717,5.8,151.51,151.43,3.3024]
[1729161315914,15.82,151.49,151.43,3.3024]
[1729161316219,3.3018,151.47,151.43,3.3025]
[1729161316613,15.82,151.47,151.4,7.41857725]
[1729161317314,5.8,151.51,151.4,23.23857725]
[1729161317521,15.82,151.49,151.4,23.23857725]
[1729161317920,19.1214,151.49,151.41,15.82]
[1729161318421,15.82,151.49,151.43,3.3025]
[1729161318624,15.82,151.52,151.43,5.8]
[1729161318921,24.9207,151.52,151.48,3.3015]
[1729161319119,3.3007,151.52,151.48,3.3015]
[1729161319321,15.82,151.51,151.48,3.3015]
[1729161319725,15.82,151.51,151.48,3.24239207]
[1729161319917,21.62,151.53,151.49,3.3012]
[1729161320615,24.9206,151.53,151.49,3.3012]
[1729161321425,3.3004,151.54,151.51,3.3009]
[1729161321612,0.7937,151.59,151.49,3.36372068]
[1729161321817,0.7937,151.59,151.47,5.8]
[1729161321818,21.62,151.58,151.48,4.2216]
[1729161322114,5.8,151.59,151.49,15.82]
[1729161322321,15.82,151.6,151.49,15.82]
[1729161322523,3.2992,151.59,151.55,3.2998]
[1729161322725,15.82,151.6,151.51,5.8]
[1729161323117,3.2992,151.59,151.55,3.2999]
[1729161323616,3.2992,151.59,151.53,3.3004]
[1729161323814,15.82,151.58,151.51,5.8]
[1729161324023,19.1195,151.58,151.51,5.8]
[1729161324220,15.82,151.58,151.55,3.3]
[1729161324424,15.82,151.58,151.51,5.8]
[1729161324425,15.82,151.6,151.51,21.62]
[1729161324924,15.82,151.6,151.56,3.2998]
[1729161325128,19.1191,151.6,151.56,3.2998]
[1729161325315,15.82,151.6,151.51,21.62]
[1729161326121,15.82,151.6,151.57,3.2995]
[1729161326823,19.119,151.6,151.57,3.2995]
[1729161327123,3.2992,151.59,151.56,3.2997]
[1729161327515,15.82,151.6,151.51,5.8]
[1729161327716,19.1195,151.58,151.54,3.3001]
[1729161327912,15.82,151.58,151.54,3.3001]
[1729161328420,3.2996,151.57,151.54,3.3001]
[1729161329316,15.82,151.58,151.49,21.62]
[1729161329518,5.8,151.59,151.51,15.82]
[1729161329723,21.62,151.62,151.53,15.82]
[1729161330027,3.2989,151.61,151.53,21.62]
[1729161330417,87.14,151.65,151.54,15.82]
[1729161330714,16.613,151.7,151.61,15.82]
[1729161330919,9.0971,151.69,151.65,3.2977]
[1729161331325,15.82,151.68,151.58,4.1169]
[1729161331628,15.82,151.68,151.62,3.2985]
[1729161331924,15.82,151.68,151.58,4.1169]
[1729161331925,15.82,151.7,151.6,21.62]
[1729161332124,21.62,151.7,151.6,21.62]
[1729161332527,5.8,151.71,151.63,15.82]
[1729161333017,9.0967,151.71,151.67,3.2973]
[1729161333224,9.0967,151.71,151.63,15.82]
[1729161333225,5.8,151.71,151.63,15.82]
[1729161333429,5.8,151.71,151.67,3.2972]
[1729161333622,0.793,151.76,151.65,15.82]
[1729161333823,22.413,151.76,151.66,8.5849]
[1729161334123,21.62,151.76,151.67,15.82]
[1729161334327,21.62,151.76,151.67,17.1594]
[1729161334526,21.62,151.76,151.68,5.8]
[1729161334723,21.62,151.76,151.51,74.38035704]
[1729161334927,15.82,151.68,151.54,3.23836597]
[1729161335126,3.2976,151.67,151.62,3.2984]
[1729161335329,15.82,151.68,151.63,3.33301068]
[1729161335628,15.82,151.68,151.59,5.8]
[1729161335836,15.82,151.68,151.64,3.2979]
[1729161336137,9.0972,151.69,151.64,3.2979]
[1729161336439,9.0972,151.69,151.63,3.23374915]
[1729161336627,9.0972,151.69,151.61,1.3598]
[1729161336628,5.8,151.69,151.61,1.3598]
[1729161336931,3.2974,151.67,151.63,3.2982]
[1729161337134,5.8,151.69,151.61,1.3598]
[1729161337536,3.2973,151.68,151.63,3.2981]
[1729161337735,5.8,151.69,151.61,1.3598]
[1729161338032,9.0971,151.69,151.64,3.2979]
[1729161339821,5.8,151.69,151.61,1.3598]
[1729161340125,25.34,151.67,151.61,1.3598]
[1729161340728,3.298,151.65,151.61,1.3598]
[1729161340927,25.34,151.67,151.6,1.3923]
[1729161341130,25.34,151.67,151.59,4.6575]
[1729161341334,25.34,151.67,151.59,1.3584]
[1729161341729,3.2981,151.64,151.59,1.3584]
[1729161341934,5.96,151.65,151.59,1.3584]
[1729161342825,3.2981,151.64,151.6,3.2989]
[1729161343025,5.96,151.65,151.57,1.344]
[1729161344640,3.2983,151.63,151.59,3.2991]
[1729161344935,3.2983,151.63,151.57,1.344]
[1729161345246,5.96,151.65,151.57,1.344]
[1729161345432,3.2982,151.64,151.57,1.344]
[1729161345629,5.96,151.65,151.57,1.344]
[1729161345834,31.3,151.65,151.57,1.344]
[1729161346945,3.2987,151.62,151.58,3.2993]
[1729161347141,25.34,151.65,151.53,25.34]
[1729161347335,25.34,151.56,151.49,3.22343872]
[1729161347542,25.34,151.56,151.43,25.34]
[1729161347543,3.3002,151.55,151.5,3.301]
[1729161347745,5.96,151.56,151.46,28.0611]
[1729161348044,25.34,151.59,151.48,25.34]
[1729161348045,5.96,151.59,151.48,25.34]
[1729161348237,5.96,151.59,151.5,25.34]
[1729161348543,5.96,151.59,151.51,1.3795]
[1729161348845,3.2994,151.58,151.51,4.71151979]
[1729161349044,3.2994,151.58,151.51,1.3795]
[1729161349544,3.2994,151.58,151.53,3.3004]
[1729161349752,3.2994,151.58,151.53,6.65321191]
[1729161349942,3.2994,151.58,151.53,3.3004]
[1729161350447,3.2994,151.58,151.53,6.6408962]
[1729161350645,3.2994,151.58,151.53,3.3404962]
[1729161350844,3.2994,151.58,151.54,3.3002]
[1729161351441,9.2592,151.59,151.55,3.3]
[1729161352547,25.34,151.61,151.51,1.3795]
[1729161352548,9.2587,151.61,151.54,2.8454]
[1729161352748,5.96,151.61,151.54,6.0951039]
[1729161354244,3.2993,151.59,151.54,6.0951039]
[1729161355550,3.2993,151.59,151.56,3.2998]
[1729161355949,5.96,151.61,151.54,3.2497039]
[1729161356143,3.2997,151.57,151.54,3.3002]
[1729161356649,3.2997,151.57,151.52,3.34500689]
[1729161356954,31.3,151.61,151.52,3.34500689]
[1729161357151,31.3,151.61,151.52,6.64570689]
[1729161357152,25.34,151.59,151.52,6.64570689]
[1729161357749,25.34,151.59,151.52,3.34500689]
[1729161358049,15.86,151.58,151.51,1.3795]
[1729161358347,19.1595,151.58,151.54,3.3001]
[1729161358552,19.1595,151.58,151.51,4.72186195]
[1729161358852,19.1595,151.58,151.54,3.3001]
[1729161359550,15.86,151.58,151.53,3.26380357]
[1729161359754,21.82,151.61,151.51,17.2395]
[1729161360256,21.82,151.61,151.51,20.57185254]
[1729161361348,3.2995,151.58,151.55,3.3]
[1729161362049,15.86,151.61,151.54,3.3002]
[1729161362351,15.86,151.61,151.53,5.96]
[1729161362352,9.2586,151.62,151.55,1.4192]
[1729161362657,3.2984,151.63,151.55,17.2792]
[1729161362853,5.96,151.65,151.57,15.86]
[1729161363058,5.96,151.65,151.57,21.82]
[1729161363354,9.258,151.65,151.58,1.3924]
[1729161363855,5.96,151.67,151.58,1.3924]
[1729161364049,25.34,151.64,151.56,1.3869]
[1729161364451,5.96,151.63,151.56,1.3869]
[1729161364654,25.34,151.62,151.56,1.3869]
[1729161364857,3.299,151.6,151.56,4.6867]
[1729161365054,25.34,151.62,151.56,1.3869]
[1729161365251,25.34,151.62,151.57,3.2994]
[1729161365555,3.2989,151.6,151.57,3.2994]
[1729161365751,25.34,151.62,151.57,3.2994]
[1729161365956,3.2989,151.61,151.57,3.2994]
[1729161366257,25.34,151.62,151.57,3.2994]
[1729161366459,25.34,151.62,151.55,4.7191]
[1729161366760,25.34,151.6,151.5,1.3266]
[1729161366955,5.96,151.59,151.54,3.3002]
[1729161367151,5.96,151.59,151.54,6.6799755]
[1729161367358,5.96,151.59,151.5,8.6475]
[1729161367753,3.2997,151.57,151.5,8.6475]
[1729161368655,3.2995,151.58,151.54,3.3002]
[1729161369560,5.96,151.59,151.53,3.29197198]
[1729161369760,5.96,151.59,151.5,33.9875]
[1729161370151,25.34,151.62,151.5,33.9875]
[1729161370349,5.9,151.62,151.53,25.34]
[1729161370559,5.9,151.62,151.54,7.3452]
[1729161370853,9.1985,151.62,151.59,3.299]
[1729161371054,200.27310402,151.69,151.54,7.3452]
[1729161371055,5.9,151.66,151.55,25.34]
[1729161371258,129.01310402,151.69,151.55,25.34]
[1729161371564,3.2972,151.69,151.65,3.2977]
[1729161371858,5.9,151.7,151.65,3.2977]
[1729161372061,5.9,151.7,151.66,3.2975]
[1729161372457,5.9,151.7,151.65,3.36821574]
[1729161372654,5.9,151.7,151.6,10.0794]
[1729161373662,3.2973,151.68,151.6,10.0794]
[1729161374163,3.297,151.69,151.65,3.2978]
[1729161374349,5.9,151.7,151.6,4.1794]
[1729161374555,31.24,151.7,151.6,4.1794]
[1729161374760,3.2975,151.67,151.63,3.2983]
[1729161375154,31.24,151.7,151.6,4.1794]
[1729161375155,31.24,151.7,151.6,2.7342]
[1729161375359,5.9,151.7,151.61,3.34049132]
[1729161375659,1.00822894,151.69,151.54,1.3943]
[1729161375863,3.2993,151.59,151.55,3.2999]
[1729161376059,31.24,151.61,151.55,3.2999]
[1729161376260,31.24,151.61,151.55,6.55989755]
[1729161376459,25.34,151.59,151.51,6.10248437]
[1729161376666,19.8,151.69,151.51,6.10248437]
[1729161376862,3.2995,151.58,151.54,3.3001]
[1729161377057,5.9,151.59,151.51,6.10248437]
[1729161377256,5.9,151.63,151.51,12.00248437]
[1729161377457,9.198,151.65,151.61,3.2986]
[1729161377658,25.34,151.68,151.6,3.27744809]
[1729161377864,3.2974,151.67,151.58,25.34]
[1729161378068,5.9,151.67,151.64,3.2979]
[1729161379064,5.9,151.67,151.65,3.2977]
[1729161379261,25.34,151.71,151.59,12.0104764]
[1729161379465,5.9,151.7,151.67,3.2973]
[1729161380263,5.9,151.7,151.61,25.34]
[1729161380462,5.9,151.7,151.68,3.2971]
[1729161380668,3.2967,151.71,151.68,3.2971]
[1729161380972,5.9,151.73,151.7,3.2965]
[1729161381261,5.9,151.73,151.68,3.2537296]
[1729161382167,5.9,151.73,151.64,7.3465]
[1729161383069,3.296,151.74,151.65,25.34]
[1729161383561,3.296,151.74,151.66,2.7332]
[1729161383864,25.34,151.77,151.66,2.7332]
[1729161384064,5.9,151.77,151.68,25.34]
[1729161384272,128.94176613,151.78,151.72,3.2962]
[1729161384563,3.2957,151.75,151.72,3.2962]
[1729161386469,31.24,151.77,151.68,9.23169436]
[1729161386667,3.2955,151.76,151.73,3.2961]
[1729161386866,31.24,151.77,151.68,9.23169436]
[1729161387171,9.1953,151.77,151.74,3.2958]
[1729161387378,128.94176613,151.78,151.68,34.57169436]
[1729161387760,132.23696613,151.78,151.71,3.2965]
[1729161387961,132.23696613,151.78,151.68,34.57169436]
[1729161388170,5.9,151.79,151.7,25.34]
[1729161388366,5.9,151.79,151.71,1.4288]
[1729161388571,9.1948,151.79,151.71,1.4288]
[1729161388771,25.34,151.82,151.71,1.4288]
[1729161388971,5.9,151.81,151.71,1.4288]
[1729161389173,3.2947,151.8,151.76,3.2953]
[1729161389374,3.2947,151.8,151.72,5.9]
[1729161389570,9.1945,151.81,151.77,3.295]
[1729161389870,5.9,151.81,151.77,3.295]
[1729161390067,5.9,151.81,151.73,2.7352]
[1729161390376,3.2949,151.79,151.75,3.2955]
[1729161391374,3.2949,151.79,151.76,6.56116092]
[1729161391572,3.2946,151.8,151.73,2.7352]
[1729161391874,3.2946,151.8,151.76,3.2953]
[1729161392071,3.2946,151.8,151.77,3.23510114]
[1729161392670,5.9,151.81,151.77,3.23510114]
[1729161392870,5.9,151.81,151.74,3.2957]
[1729161393071,3.295,151.78,151.73,2.7352]
[1729161393274,25.34,151.8,151.73,6.0312]
[1729161393572,25.34,151.77,151.67,5.9]
[1729161393769,3.2963,151.73,151.67,5.9]
[1729161394279,3.2958,151.75,151.71,3.2963]
[1729161394775,31.24,151.77,151.67,9.13180439]
[1729161394977,5.9,151.77,151.67,9.13180439]
[1729161395379,25.34,151.79,151.67,9.13180439]
[1729161395565,5.9,151.78,151.67,9.13180439]
[1729161396384,3.2955,151.76,151.73,3.2961]
[1729161396583,5.9,151.78,151.67,9.13180439]
[1729161396875,5.9,151.78,151.69,3.2968]
[1729161396876,3.2963,151.73,151.69,3.2968]
[1729161397086,25.34,151.77,151.69,3.2968]
[1729161397274,25.34,151.77,151.67,9.13180439]
[1729161397981,3.2962,151.73,151.7,3.2967]
[1729161398180,25.34,151.77,151.67,9.13180439]
[1729161398475,3.2956,151.76,151.73,3.2961]
[1729161399776,3.2957,151.75,151.73,3.2961]
[1729161400281,3.2956,151.76,151.73,3.296]
[1729161400681,5.9,151.78,151.67,9.13180439]
[1729161400882,3.2954,151.77,151.74,3.2957]
[1729161401277,5.9,151.78,151.74,3.2957]
[1729161401576,3.2954,151.77,151.75,3.2957]
[1729161401977,5.9,151.78,151.75,3.2957]
[1729161402177,9.1951,151.78,151.75,3.2957]
[1729161402989,9.1951,151.78,151.71,5.76]
[1729161403180,9.1951,151.78,151.76,3.2954]
[1729161405788,9.195,151.78,151.75,3.2955]
[1729161405978,5.9,151.78,151.75,3.2955]
[1729161406386,5.9,151.78,151.72,1.3642]
[1729161406689,5.9,151.78,151.72,3.2962]
[1729161406884,25.34,151.77,151.68,1.4225]
[1729161407082,3.2967,151.71,151.68,4.7196]
[1729161407787,3.2963,151.72,151.68,1.4225]
[1729161408290,5.76,151.74,151.68,1.4225]
[1729161408485,3.2962,151.73,151.7,3.2966]
[1729161409591,9.0559,151.74,151.68,1.4225]
[1729161409893,3.2959,151.74,151.68,1.4225]
[1729161410087,3.2965,151.72,151.68,1.4225]
[1729161410299,5.76,151.77,151.68,1.4225]
[1729161411189,3.2959,151.74,151.71,3.2963]
[1729161411692,3.2959,151.74,151.68,1.4225]
[1729161411897,3.2959,151.74,151.72,3.2962]
[1729161412079,5.76,151.8,151.69,31.1]
[1729161412279,5.76,151.79,151.75,3.2955]
[1729161412590,5.76,151.79,151.75,3.35972225]
[1729161412789,9.0549,151.79,151.76,3.2953]
[1729161414191,3.2953,151.77,151.75,6.52341325]
[1729161414489,3.2953,151.77,151.75,3.2956]
[1729161414793,5.76,151.79,151.75,3.24957823]
[1729161414986,5.76,151.79,151.76,3.2953]
[1729161415188,5.76,151.79,151.75,3.23696895]
[1729161415395,3.2951,151.78,151.75,3.2955]
[1729161415691,3.2951,151.78,151.75,6.67257607]
[1729161415895,5.76,151.8,151.69,31.1]
[1729161416281,25.34,151.79,151.68,7.1825]
[1729161416694,3.296,151.74,151.72,3.2963]
[1729161417291,3.296,151.74,151.71,3.2964]
[1729161417490,3.296,151.74,151.68,7.1825]
[1729161417990,3.296,151.74,151.71,3.2963]
[1729161418383,3.296,151.74,151.72,3.2963]
[1729161418790,3.2957,151.75,151.68,7.1825]
[1729161419088,3.2957,151.75,151.72,3.2962]
[1729161419394,5.76,151.76,151.68,7.1825]
[1729161419589,5.76,151.76,151.6,6.5976]
[1729161419590,25.34,151.74,151.6,6.5976]
[1729161419792,25.34,151.71,151.62,5.76]
[1729161420189,3.2973,151.68,151.65,3.2977]
[1729161420391,25.34,151.71,151.62,5.76]
[1729161420598,25.34,151.71,151.62,2.756]
[1729161420794,3.2971,151.69,151.62,8.516]
[1729161421791,25.34,151.71,151.62,8.516]
[1729161422100,5.76,151.73,151.63,25.34]
[1729161422587,5.76,151.73,151.69,3.2968]
[1729161422588,3.2963,151.72,151.69,3.2968]
[1729161422785,3.2963,151.72,151.69,6.61826616]
[1729161422990,5.76,151.73,151.62,8.516]
[1729161423602,3.2972,151.68,151.65,3.2976]
[1729161423806,25.34,151.71,151.62,8.516]
[1729161424099,25.34,151.69,151.59,9.0684764]
[1729161424307,5.76,151.68,151.59,9.0684764]
[1729161424604,5.76,151.68,151.59,3.3084764]
[1729161424791,5.76,151.68,151.61,3.2986]
[1729161424987,5.76,151.68,151.62,3.30023769]
[1729161425305,3.298,151.65,151.62,6.59863769]
[1729161425490,3.298,151.65,151.62,3.2984]
[1729161426196,3.2976,151.67,151.64,3.2981]
[1729161426398,71.22,151.74,151.61,5.78]
[1729161426399,5.78,151.69,151.61,5.78]
[1729161426607,3.2969,151.7,151.61,5.78]
[1729161426898,5.78,151.73,151.63,25.34]
[1729161427103,5.78,151.73,151.64,1.3867]
[1729161427309,9.0762,151.73,151.69,3.2968]
[1729161427703,3.2963,151.72,151.69,3.2968]
[1729161429000,9.0761,151.73,151.7,3.2966]
[1729161429701,5.78,151.73,151.67,3.36325333]
[1729161429905,3.2964,151.72,151.69,3.2969]
[1729161431115,3.2967,151.71,151.68,3.2972]
[1729161431406,5.78,151.73,151.65,2.789]
[1729161431901,3.2967,151.71,151.68,3.2972]
[1729161432407,3.2968,151.7,151.68,3.2972]
[1729161432825,3.2968,151.7,151.67,3.2973]
[1729161433805,3.2971,151.69,151.66,3.2976]
[1729161434007,31.0,151.69,151.59,5.66]
[1729161434202,31.0,151.69,151.59,2.7122]
[1729161434508,31.0,151.69,151.59,8.3722]
[1729161434913,3.2976,151.67,151.62,3.2985]
[1729161435109,3.2976,151.67,151.59,8.3722]
[1729161435411,31.0,151.69,151.59,8.3722]
[1729161435614,3.2972,151.68,151.65,3.2978]
[1729161435907,5.66,151.69,151.59,33.7122]
[1729161436097,5.66,151.69,151.41,9.91633075]
[1729161436098,25.34,151.66,151.42,226.0]
[1729161436305,5.66,151.69,151.51,2.7122]
[1729161436306,5.66,151.65,151.51,2.7122]
[1729161436509,25.34,151.62,151.51,6.04916912]
[1729161436812,5.66,151.61,151.51,8.3722]
[1729161437304,3.2989,151.6,151.56,3.2997]
[1729161438517,8.9584,151.63,151.52,25.34]
[1729161438815,5.66,151.63,151.52,25.34]
[1729161439007,3.2986,151.62,151.57,3.2994]
[1729161439508,8.9584,151.63,151.58,3.2992]
[1729161439706,8.9584,151.63,151.52,25.34]
[1729161439900,3.2984,151.63,151.52,25.34]
[1729161440105,5.66,151.64,151.52,25.34]
[1729161440408,3.2986,151.62,151.52,25.34]
[1729161440613,3.2986,151.62,151.58,3.2992]
[1729161440819,5.66,151.64,151.59,3.32354962]
[1729161441109,8.9582,151.64,151.55,5.66]
[1729161441307,5.66,151.64,151.56,1.3838]
[1729161441517,3.2983,151.63,151.56,1.3838]
[1729161441811,3.2983,151.63,151.59,3.299]
[1729161442013,8.9581,151.64,151.59,3.33510003]
[1729161442211,25.34,151.67,151.61,3.2986]
[1729161442399,5.66,151.66,151.61,6.56571759]
[1729161442605,3.298,151.65,151.61,6.56571759]
[1729161442906,3.298,151.65,151.62,3.2985]
[1729161445816,25.34,151.7,151.61,3.22949623]
[1729161446114,25.34,151.7,151.59,31.0]
[1729161446115,3.2975,151.67,151.59,31.0]
[1729161446315,3.2975,151.67,151.64,3.2979]
[1729161446719,5.66,151.69,151.59,34.35247822]
[1729161447019,25.34,151.67,151.59,9.01247822]
[1729161447418,3.2984,151.63,151.59,3.35247822]
[1729161447613,3.2984,151.63,151.6,3.2988]
[1729161447915,3.2984,151.63,151.6,6.52942356]
[1729161448318,5.66,151.65,151.61,3.2986]
[1729161449115,5.66,151.66,151.6,3.22600461]
[1729161449417,5.66,151.66,151.58,2.7733]
[1729161449622,8.9578,151.66,151.58,2.7733]
[1729161449822,8.9578,151.66,151.63,3.2982]
[1729161450331,3.2978,151.66,151.63,3.2982]
[1729161450613,3.2978,151.66,151.62,3.21709664]
[1729161450815,3.2978,151.66,151.58,2.7733]
[1729161452121,5.66,151.68,151.59,25.34]
[1729161452314,8.9573,151.68,151.65,3.2977]
[1729161452514,5.66,151.68,151.6,5.66]
[1729161452816,5.66,151.68,151.64,3.2979]
[1729161452817,3.2974,151.67,151.64,3.2979]
[1729161453923,5.66,151.7,151.66,3.2975]
[1729161454122,5.66,151.7,151.6,5.66]
[1729161455018,3.2974,151.67,151.64,3.2979]
[1729161455327,5.66,151.7,151.6,5.66]
[1729161455626,3.2973,151.68,151.6,5.66]
[1729161456125,3.2973,151.68,151.65,3.2978]
[1729161460223,3.2973,151.68,151.62,1.4711]
[1729161460224,15.83,151.72,151.63,15.83]
[1729161460523,5.58,151.73,151.65,15.83]
[1729161460724,5.58,151.73,151.66,2.7453]
[1729161461128,3.2965,151.71,151.69,3.2969]
[1729161461929,3.2964,151.72,151.7,3.32531627]
[1729161462523,3.2964,151.72,151.7,3.2967]
[1729161463819,21.41,151.74,151.69,3.29826508]
[1729161464019,3.296,151.74,151.67,15.83]
[1729161464221,21.41,151.76,151.67,19.1242017]
[1729161464538,21.41,151.76,151.68,6.9324]
[1729161464539,3.2958,151.75,151.68,6.9324]
[1729161464838,5.58,151.77,151.69,15.83]
[1729161465130,19.8,151.89,151.68,6.9324]
[1729161465131,5.58,151.85,151.75,15.83]
[1729161465321,5.58,151.84,151.75,15.83]
[1729161465524,3.2941,151.83,151.8,3.2945]
[1729161465829,71.24,151.9,151.75,31.54778207]
[1729161466032,25.31,151.88,151.76,1.3524]
[1729161466329,25.31,151.8,151.74,3.35423422]
[1729161466630,25.31,151.8,151.71,2.9007]
[1729161466835,25.31,151.8,151.71,6.1430595]
[1729161467126,25.31,151.8,151.71,2.9007]
[1729161467332,3.2954,151.77,151.73,3.296]
[1729161467532,3.2954,151.77,151.74,3.21401028]
[1729161467929,3.2954,151.77,151.74,6.50991028]
[1729161468233,3.295,151.78,151.74,3.2959]
[1729161468634,3.295,151.78,151.74,6.54715983]
[1729161468834,3.295,151.78,151.74,3.2959]
[1729161469538,3.295,151.78,151.75,3.2957]
[1729161469737,3.295,151.78,151.71,2.9007]
[1729161469938,3.295,151.78,151.71,6.20492036]
[1729161470231,3.295,151.78,151.71,2.9007]
[1729161470430,3.2946,151.81,151.72,5.56]
[1729161470630,25.31,151.82,151.76,3.2953]
[1729161470631,30.87,151.82,151.76,3.2953]
[1729161471035,3.2947,151.8,151.76,3.2953]
[1729161471340,3.2947,151.8,151.75,3.28015491]